bitfinex-derivatives/quotes_ETHF0:USTF0_20240904
["timestamp","ask_amount","ask_price","bid_price","bid_amount"]
[1725493746940,3.23896,2445.4,2445.1,3.61679]
[1725493747249,0.40897,2445.3,2445.1,3.2078]
[1725493747541,3.23895,2445.4,2445.1,3.61679]
[1725493747738,1.02232,2445.6,2445.1,3.61679]
[1725493747739,3.2078,2445.8,2445.1,3.2078]
[1725493747941,0.40889,2445.8,2445.5,0.40892]
[1725493748139,0.3932,2445.9,2445.6,0.3924]
[1725493748435,3.23889,2445.8,2445.6,0.7546]
[1725493748641,3.23888,2445.8,2445.6,0.7546]
[1725493748842,2.83,2445.8,2445.6,1.16351]
[1725493749144,3.23888,2445.8,2445.6,0.7546]
[1725493749628,2.83,2445.8,2445.6,1.1635]
[1725493749833,3.23888,2445.8,2445.6,0.7546]
[1725493750029,3.23888,2445.8,2445.6,1.16351]
[1725493750030,2.83,2445.8,2445.6,1.16351]
[1725493750444,3.23888,2445.8,2445.6,1.16351]
[1725493750842,2.83,2445.8,2445.6,1.16351]
[1725493751239,3.23889,2445.8,2445.6,0.7546]
[1725493751640,2.83,2445.8,2445.6,1.16351]
[1725493752239,0.4089,2445.7,2445.6,0.7546]
[1725493753947,3.23889,2445.8,2445.6,0.7546]
[1725493754554,0.4089,2445.7,2445.6,0.7546]
[1725493758548,4.0888,2445.7,2445.1,7.4048]
[1725493758740,0.40898,2445.2,2445.1,8.1369]
[1725493758944,0.40898,2445.2,2445.1,3.9399]
[1725493759150,0.40898,2445.2,2445.1,0.7321]
[1725493759349,0.409,2445.1,2445.0,0.3847]
[1725493760052,0.78939,2445.2,2445.0,0.3847]
[1725493760246,0.409,2445.1,2445.0,0.3847]
[1725493760648,0.78939,2445.2,2445.0,0.3847]
[1725493761661,0.409,2445.1,2445.0,0.3847]
[1725493761951,3.23897,2445.3,2445.0,0.3847]
[1725493762146,2.83,2445.5,2445.3,0.40896]
[1725493762341,2.83,2445.5,2445.4,0.3669]
[1725493762549,3.23893,2445.5,2445.4,0.3669]
[1725493762745,0.40897,2445.3,2445.0,0.7937]
[1725493762943,0.40897,2445.3,2445.1,0.3669]
[1725493763149,0.40897,2445.3,2445.1,0.77589]
[1725493763347,0.40896,2445.4,2445.2,3.2078]
[1725493763553,0.40896,2445.4,2445.2,0.80268]
[1725493763750,0.40896,2445.4,2445.2,4.01048]
[1725493764755,0.40896,2445.4,2445.2,0.80268]
[1725493765357,3.23894,2445.5,2445.2,0.80268]
[1725493765555,3.23894,2445.5,2445.3,3.61676]
[1725493765750,2.83,2445.5,2445.3,0.40896]
[1725493766248,1.41182,2445.8,2445.3,0.40896]
[1725493766249,0.4089,2445.7,2445.3,3.2078]
[1725493766448,3.2196,2445.8,2445.3,3.2078]
[1725493766449,3.62849,2445.8,2445.3,3.2078]
[1725493766755,3.2196,2445.8,2445.5,0.40893]
[1725493766946,3.62849,2445.8,2445.5,0.40893]
[1725493767151,0.4089,2445.7,2445.6,0.3926]
[1725493768058,0.40894,2445.5,2445.3,0.40895]
[1725493768249,0.40894,2445.5,2445.3,0.80155]
[1725493768449,0.40896,2445.3,2445.1,0.40899]
[1725493768751,0.40896,2445.4,2445.2,0.40898]
[1725493769355,0.40896,2445.3,2445.1,13.19538485]
[1725493769551,0.40896,2445.4,2445.1,13.19538485]
[1725493769751,0.40896,2445.4,2445.2,0.40897]
[1725493771461,0.40896,2445.3,2445.1,9.98757485]
[1725493771765,0.40898,2445.2,2445.1,0.7727]
[1725493772063,0.40903,2444.9,2444.8,0.00613459]
[1725493774763,0.40902,2445.0,2444.8,0.00613459]
[1725493774959,3.60171,2445.1,2444.8,3.62298459]
[1725493775161,0.40902,2445.0,2444.8,3.62298459]
[1725493775364,3.60171,2445.1,2444.8,3.62298459]
[1725493775957,0.40901,2445.0,2444.8,3.62298459]
[1725493776357,3.6017,2445.1,2444.8,0.41518459]
[1725493776554,2.83,2445.1,2444.9,0.40902]
[1725493776771,2.83,2445.2,2445.0,0.409]
[1725493776960,2.83,2445.2,2445.1,1.541]
[1725493777155,2.83,2445.2,2445.1,1.132]
[1725493777956,2.83,2445.2,2444.8,0.00613459]
[1725493778152,2.83,2445.0,2444.8,3.21393459]
[1725493778365,2.83,2445.0,2444.9,0.40903]
[1725493779857,2.83,2445.0,2444.8,3.21393459]
[1725493780757,0.40903,2444.9,2444.8,0.00613459]
[1725493780958,0.40912,2444.4,2444.2,1.103]
[1725493781194,3.23913,2444.3,2444.1,3.2078]
[1725493781378,0.40915,2444.2,2444.1,3.2078]
[1725493781672,3.60244,2444.3,2443.9,0.4092]
[1725493781970,3.60857459,2444.3,2443.9,0.41533459]
[1725493782163,3.60857459,2444.3,2443.9,0.00613459]
[1725493782673,3.60857459,2444.3,2443.9,0.41533459]
[1725493785568,3.60857459,2444.3,2444.0,3.2078]
[1725493785763,0.40915,2444.2,2444.0,3.2078]
[1725493786363,3.60857459,2444.3,2444.0,3.61698]
[1725493786560,3.60857459,2444.3,2444.0,0.40918]
[1725493788168,3.60857459,2444.3,2443.9,3.21393459]
[1725493788169,2.83,2444.1,2443.9,3.21393459]
[1725493788374,2.83,2444.1,2443.9,0.00613459]
[1725493788668,3.60857459,2444.3,2443.9,3.62312459]
[1725493788870,3.60857459,2444.3,2444.0,0.3763]
[1725493789578,3.19943459,2444.3,2444.0,0.78548]
[1725493790261,3.60856459,2444.3,2444.0,0.78548]
[1725493790461,2.83613459,2444.3,2444.2,0.40915]
[1725493790662,2.83613459,2444.3,2444.1,0.40915]
[1725493790864,2.83613459,2444.3,2444.2,0.7586]
[1725493795080,3.24526459,2444.3,2444.2,0.7586]
[1725493795574,2.83613459,2444.3,2444.2,0.7586]
[1725493796183,3.24526459,2444.3,2444.2,0.7586]
[1725493796875,3.24526459,2444.3,2444.0,0.3763]
[1725493796876,0.40915,2444.2,2444.0,0.3763]
[1725493797183,0.40915,2444.2,2444.0,0.78548]
[1725493797571,0.40915,2444.2,2444.0,0.3763]
[1725493797771,3.24527459,2444.3,2444.0,0.78548]
[1725493800078,2.83,2444.1,2444.0,0.3763]
[1725493800277,3.23916,2444.1,2444.0,0.3763]
[1725493801778,2.83,2444.1,2444.0,0.3763]
[1725493803276,2.83613459,2444.3,2444.2,0.40915]
[1725493806970,0.00613459,2444.3,2444.2,4.50035]
[1725493807177,3.23907,2444.7,2444.2,7.299]
[1725493807485,3.23907,2444.7,2444.5,3.2078]
[1725493807987,2.83,2444.7,2444.5,3.5987]
[1725493808280,3.23906,2444.7,2444.5,4.00779]
[1725493808478,3.19383459,2444.8,2444.5,3.5987]
[1725493808676,2.83613459,2444.8,2444.6,0.40907]
[1725493809775,2.83613459,2444.8,2444.6,3.61687]
[1725493812082,2.83613459,2444.8,2444.6,0.40907]
[1725493812876,0.095,2445.2,2445.1,0.409]
[1725493813181,3.5562,2445.6,2445.2,0.40897]
[1725493813382,0.40893,2445.5,2445.4,3.2078]
[1725493813582,3.96512,2445.6,2445.4,3.2078]
[1725493813778,3.96512,2445.6,2445.3,0.7549]
[1725493813779,3.96512,2445.6,2445.3,1.16386]
[1725493813977,3.5562,2445.6,2445.3,4.37166]
[1725493814182,2.83,2445.6,2445.4,0.40894]
[1725493815084,2.83,2445.6,2445.3,3.9627]
[1725493815287,2.83,2445.6,2445.4,0.40894]
[1725493816286,3.23892,2445.6,2445.4,0.381]
[1725493816671,2.83,2445.6,2445.4,0.78995]
[1725493817079,2.83,2445.6,2445.4,0.78994]
[1725493817579,2.83,2445.6,2445.5,0.40893]
[1725493817780,0.00613459,2445.7,2445.6,0.40891]
[1725493817981,0.00613459,2445.7,2445.5,0.40892]
[1725493818695,0.41503459,2445.7,2445.4,3.99774]
[1725493819879,0.41503459,2445.7,2445.4,0.78994]
[1725493821883,0.40892,2445.6,2445.4,0.78994]
[1725493822578,0.00613459,2445.7,2445.4,0.78994]
[1725493822780,0.41504459,2445.7,2445.4,0.381]
[1725493823085,0.00613459,2445.7,2445.5,0.40893]
[1725493823593,0.41503459,2445.7,2445.4,0.78993]
[1725493825292,0.40891,2445.6,2445.4,0.78993]
[1725493826080,0.40891,2445.6,2445.2,0.00613459]
[1725493826081,1.43138,2445.3,2445.2,0.00613459]
[1725493826287,4.49856,2445.3,2445.2,0.00613459]
[1725493828385,5.52098,2445.3,2445.2,0.00613459]
[1725493829397,4.49856,2445.3,2445.2,0.00613459]
[1725493829698,0.40896,2445.3,2445.2,0.00613459]
[1725493831496,4.34685,2445.4,2445.2,0.00613459]
[1725493831687,3.98245,2445.4,2445.2,0.38723459]
[1725493831882,0.40896,2445.3,2445.2,0.77013459]
[1725493832488,3.23893,2445.5,2445.2,4.85973459]
[1725493832790,3.23893,2445.5,2445.2,1.17910459]
[1725493833093,0.40895,2445.4,2445.2,0.77013459]
[1725493833495,3.23894,2445.5,2445.2,1.17911459]
[1725493833886,3.23894,2445.5,2445.3,0.40896]
[1725493834482,3.23894,2445.5,2445.2,1.17910459]
[1725493835998,0.40895,2445.4,2445.2,1.17910459]
[1725493837103,3.23894,2445.5,2445.3,0.40896]
[1725493837492,3.23894,2445.5,2445.2,1.17910459]
[1725493837995,3.23894,2445.5,2445.2,0.77013459]
[1725493838194,3.23894,2445.5,2445.3,0.40896]
[1725493838500,0.80022,2445.6,2445.4,0.40894]
[1725493838691,0.40893,2445.5,2445.3,0.40896]
[1725493839701,0.40895,2445.4,2445.2,0.77013459]
[1725493839997,0.40894,2445.5,2445.3,0.40896]
[1725493840193,0.40896,2445.3,2445.2,0.77013459]
[1725493840396,2.83,2445.3,2445.2,0.00613459]
[1725493840589,2.83,2445.5,2445.2,0.36273459]
[1725493840789,0.40893,2445.5,2445.3,0.40895]
[1725493841105,0.80022,2445.6,2445.4,0.40894]
[1725493843193,0.80022,2445.6,2445.3,0.79205]
[1725493843396,0.40892,2445.6,2445.4,0.40894]
[1725493844389,3.24504459,2445.7,2445.3,0.3831]
[1725493844590,3.24504459,2445.7,2445.5,0.40892]
[1725493844796,0.40892,2445.6,2445.4,0.40894]
[1725493845898,1.18,2445.6,2445.4,0.40894]
[1725493846201,0.41503459,2445.7,2445.5,0.40893]
[1725493846790,0.41503459,2445.7,2445.6,0.3843]
[1725493846987,0.00613459,2445.7,2445.6,0.79321]
[1725493849289,0.41503459,2445.7,2445.6,0.79321]
[1725493849699,0.00613459,2445.7,2445.6,0.79321]
[1725493853402,0.00613459,2445.7,2445.3,0.3831]
[1725493853603,3.57423459,2445.7,2445.3,0.7407]
[1725493853809,0.40892,2445.6,2445.4,0.40894]
[1725493854202,3.98314459,2445.7,2445.5,0.40893]
[1725493855702,0.40891,2445.6,2445.5,0.40893]
[1725493856304,0.40891,2445.6,2445.4,0.40894]
[1725493856506,0.40891,2445.6,2445.5,0.40893]
[1725493857004,0.40891,2445.6,2445.4,0.40894]
[1725493857599,0.40891,2445.6,2445.5,0.40893]
[1725493858601,0.40891,2445.6,2445.4,0.40894]
[1725493859100,1.02233,2445.5,2445.3,0.3576]
[1725493859404,1.43138,2445.3,2445.2,0.00613459]
[1725493859608,0.40896,2445.3,2445.2,0.00613459]
[1725493860810,0.76984,2445.5,2445.3,0.40896]
[1725493861004,0.76984,2445.5,2445.3,3.61676]
[1725493861612,0.41504459,2445.7,2445.5,0.40892]
[1725493861808,0.41504459,2445.7,2445.6,1.154]
[1725493862406,0.41503459,2445.7,2445.6,1.154]
[1725493862601,0.00613459,2445.7,2445.6,1.154]
[1725493862808,0.41503459,2445.7,2445.6,1.56291]
[1725493863004,0.00613459,2445.7,2445.6,1.56291]
[1725493863204,0.41503459,2445.7,2445.6,1.154]
[1725493863505,0.41503459,2445.7,2445.6,1.56291]
[1725493863715,0.41503459,2445.7,2445.6,1.154]
[1725493863910,0.00613459,2445.7,2445.6,1.56291]
[1725493864511,0.41503459,2445.7,2445.6,1.154]
[1725493865806,0.41503459,2445.7,2445.6,1.56291]
[1725493868715,0.41503459,2445.7,2445.6,1.154]
[1725493870809,0.00613459,2445.7,2445.6,1.56291]
[1725493871309,0.41503459,2445.7,2445.6,1.154]
[1725493872919,0.41503459,2445.7,2445.6,0.3873]
[1725493873518,0.40892,2445.6,2445.4,3.61673]
[1725493873705,1.58892,2445.6,2445.4,3.98933]
[1725493876020,0.40893,2445.5,2445.4,3.5804]
[1725493876324,1.58893,2445.6,2445.4,4.87115]
[1725493876618,1.58893,2445.6,2445.4,0.78155]
[1725493877709,0.40893,2445.5,2445.4,0.3726]
[1725493877910,0.40896,2445.3,2445.2,1.0733529]
[1725493878107,0.40896,2445.3,2445.2,0.00613459]
[1725493879823,0.40894,2445.5,2445.2,3.21393459]
[1725493880012,0.40894,2445.5,2445.3,0.40896]
[1725493880412,0.40894,2445.5,2445.4,0.3652]
[1725493881219,1.58892,2445.6,2445.4,0.77413]
[1725493881418,1.58892,2445.6,2445.5,0.7655]
[1725493882720,1.18,2445.6,2445.5,1.17443]
[1725493882928,0.80323459,2445.7,2445.5,1.17443]
[1725493885237,0.00613459,2445.7,2445.6,0.40891]
[1725493886822,1.59503459,2445.7,2445.5,1.17442]
[1725493887226,1.18613459,2445.7,2445.6,0.40891]
[1725493889333,0.00613459,2445.7,2445.6,0.40891]
[1725493894327,0.00613459,2445.7,2445.6,4.49771]
[1725493894532,0.3942,2446.1,2446.0,0.40885]
[1725493894733,0.3942,2446.1,2445.9,3.61665]
[1725493894734,0.80303,2446.1,2445.9,3.61665]
[1725493894934,0.80303,2446.1,2446.0,1.0995]
[1725493896129,0.3942,2446.1,2446.0,1.0995]
[1725493896325,1.58882,2446.2,2446.0,1.50835]
[1725493896521,1.58882,2446.2,2446.0,1.0995]
[1725493896522,0.40883,2446.1,2446.0,1.0995]
[1725493896731,1.58882,2446.2,2446.0,1.0995]
[1725493897238,0.40883,2446.1,2446.0,1.0995]
[1725493899430,1.58882,2446.2,2446.0,1.0995]
[1725493899637,0.40883,2446.1,2446.0,1.0995]
[1725493899931,1.58882,2446.2,2446.0,1.0995]
[1725493900324,1.58882,2446.2,2446.0,1.50835]
[1725493900534,0.40882,2446.2,2446.0,1.50835]
[1725493901833,0.77714459,2446.3,2446.0,1.50835]
[1725493902032,0.77714459,2446.3,2446.1,0.40882]
[1725493903033,0.00613459,2446.3,2446.2,0.40881]
[1725493904429,0.00613459,2446.3,2446.2,5.67681]
[1725493904740,0.00613459,2446.3,2446.2,6.69885]
[1725493905041,0.00613459,2446.3,2446.2,5.67681]
[1725493908440,0.095,2446.7,2446.6,0.40875]
[1725493908635,5.1684,2446.9,2446.6,0.40875]
[1725493908829,5.1684,2446.9,2446.7,0.3789]
[1725493908830,1.9606,2446.9,2446.7,0.3789]
[1725493909037,1.9606,2446.9,2446.7,0.7391]
[1725493909640,1.5519,2446.9,2446.7,1.14782]
[1725493910035,1.5519,2446.9,2446.8,0.40871]
[1725493910242,0.3719,2446.9,2446.8,0.40871]
[1725493910543,0.3719,2446.9,2446.7,0.7391]
[1725493910733,0.00613459,2447.0,2446.9,0.4087]
[1725493910936,0.00613459,2447.0,2446.9,3.6165]
[1725493911435,0.00613459,2447.0,2446.9,4.7965]
[1725493912240,0.3616,2447.4,2447.3,0.40863]
[1725493912638,3.6,2447.5,2447.3,0.40863]
[1725493912937,0.3922,2447.5,2447.4,0.40861]
[1725493913236,1.5461,2447.8,2447.3,4.3878]
[1725493913237,1.59253134,2447.7,2447.5,0.40859]
[1725493913433,1.98473134,2447.7,2447.5,0.40859]
[1725493914145,0.80473134,2447.7,2447.5,0.40859]
[1725493914344,0.39616134,2447.7,2447.5,0.40859]
[1725493914539,0.80472134,2447.7,2447.5,0.40859]
[1725493914844,0.80473134,2447.7,2447.4,0.4086]
[1725493915044,0.80473134,2447.7,2447.5,0.40859]
[1725493915643,0.80473134,2447.7,2447.5,0.4086]
[1725493916039,0.39616134,2447.7,2447.6,0.40858]
[1725493916254,0.80472134,2447.7,2447.5,0.40859]
[1725493916446,0.39616134,2447.7,2447.6,0.78058]
[1725493916748,0.00396134,2447.7,2447.6,0.78058]
[1725493917046,0.00396134,2447.7,2447.6,1.17318]
[1725493917647,0.00396134,2447.7,2447.6,5.25878]
[1725493920135,0.00396134,2447.7,2447.6,1.17318]
[1725493920543,0.00396134,2447.7,2447.6,1.53178]
[1725493921539,0.00396134,2447.7,2447.6,5.61738]
[1725493921945,0.00396134,2447.7,2447.4,3.61641]
[1725493922247,0.40858,2447.6,2447.4,3.61641]
[1725493922445,0.3908,2447.6,2447.4,3.61641]
[1725493922944,0.3908,2447.6,2447.5,0.4086]
[1725493923144,0.3908,2447.6,2447.4,3.6164]
[1725493923350,0.3908,2447.6,2447.5,0.4086]
[1725493924447,0.79938,2447.6,2447.4,3.61641]
[1725493926552,0.79938,2447.6,2447.4,0.40861]
[1725493926752,0.3908,2447.6,2447.5,0.4086]
[1725493927347,0.79938,2447.6,2447.4,0.4086]
[1725493928556,0.4086,2447.5,2447.3,7.54972]
[1725493928753,0.40861,2447.4,2447.3,3.1944]
[1725493928960,0.3908,2447.6,2447.4,0.40861]
[1725493929252,0.79938,2447.6,2447.4,0.40861]
[1725493929950,0.3908,2447.6,2447.5,0.4086]
[1725493930356,0.79938,2447.6,2447.4,0.4086]
[1725493930545,0.3908,2447.6,2447.4,0.40861]
[1725493930745,0.79938,2447.6,2447.4,0.40861]
[1725493931155,0.3908,2447.6,2447.4,0.40861]
[1725493931341,0.3908,2447.6,2447.5,0.4086]
[1725493934257,0.00396134,2447.7,2447.6,0.40858]
[1725493935357,0.41252134,2447.7,2447.5,0.40858]
[1725493935558,0.40861,2447.4,2447.3,3.2078]
[1725493935861,3.2454,2447.6,2447.2,4.60564]
[1725493936053,0.3655,2447.3,2447.2,4.60564]
[1725493936557,0.3655,2447.3,2447.2,4.197]
[1725493936861,0.3655,2447.3,2447.2,4.60565]
[1725493937261,0.3655,2447.3,2447.2,5.34345]
[1725493938167,0.4086,2447.5,2447.2,5.34345]
[1725493938461,0.7741,2447.5,2447.2,5.34345]
[1725493939267,0.7741,2447.5,2447.3,0.40862]
[1725493939268,0.3655,2447.5,2447.3,0.40862]
[1725493940473,0.7741,2447.5,2447.3,0.40862]
[1725493941156,0.3655,2447.5,2447.3,0.40862]
[1725493942559,0.3655,2447.5,2447.2,5.1256]
[1725493942867,0.3655,2447.5,2447.3,0.40863]
[1725493943060,0.3655,2447.5,2447.4,0.40861]
[1725493944060,0.00396134,2447.7,2447.6,0.40858]
[1725493944666,0.00396134,2447.7,2447.6,1.15678]
[1725493945165,0.41252134,2447.7,2447.6,0.7482]
[1725493946280,0.00396134,2447.7,2447.6,1.15678]
[1725493949575,0.41252134,2447.7,2447.6,0.7482]
[1725493950469,0.41252134,2447.7,2447.5,0.365]
[1725493950470,0.40858,2447.6,2447.5,0.365]
[1725493950676,1.02155,2447.4,2446.8,4.27501831]
[1725493950872,1.02155,2447.4,2446.9,0.7642]
[1725493950873,0.40866,2447.1,2446.9,0.7642]
[1725493951065,0.40868,2447.0,2446.9,0.7642]
[1725493951262,0.40868,2447.0,2446.9,0.3803]
[1725493951771,0.40867,2447.1,2446.9,0.3803]
[1725493952075,0.40865,2447.2,2446.9,0.3803]
[1725493953181,0.40865,2447.2,2446.9,0.78899]
[1725493954482,0.40865,2447.2,2446.9,0.3803]
[1725493954669,0.40865,2447.2,2446.9,0.78899]
[1725493954973,0.76874,2447.3,2447.0,1.18]
[1725493955169,0.76874,2447.3,2447.0,1.58868]
[1725493955379,0.76874,2447.3,2447.1,0.3938]
[1725493955773,0.79481,2447.5,2447.1,3.6016]
[1725493955976,0.79481,2447.5,2447.2,0.40864]
[1725493956276,0.79481,2447.5,2447.3,0.3664]
[1725493958871,1.96009,2447.6,2447.3,0.77502]
[1725493959374,3.21176134,2447.7,2447.5,1.18]
[1725493959574,3.62032134,2447.7,2447.6,0.3829]
[1725493959767,3.21176134,2447.7,2447.6,0.7749]
[1725493960178,3.62032134,2447.7,2447.6,0.7749]
[1725493960776,3.21176134,2447.7,2447.6,0.7749]
[1725493960982,3.62032134,2447.7,2447.6,0.7749]
[1725493962775,3.21176134,2447.7,2447.6,0.7749]
[1725493962979,3.62032134,2447.7,2447.6,0.7749]
[1725493965167,0.40859,2447.6,2447.3,1.95502]
[1725493965492,0.40859,2447.6,2447.3,0.3664]
[1725493965493,0.40861,2447.4,2447.3,0.3664]
[1725493966581,0.40865,2447.2,2447.0,1.58867]
[1725493966882,0.40865,2447.2,2447.1,0.3594]
[1725493967069,0.40863,2447.3,2447.1,0.76806]
[1725493967578,0.40863,2447.3,2447.1,0.3594]
[1725493968280,0.40865,2447.2,2447.1,0.3594]
[1725493971882,3.61642,2447.4,2447.2,0.40865]
[1725493972079,0.40863,2447.3,2447.1,0.76805]
[1725493972485,3.61642,2447.4,2447.2,0.40865]
[1725493973476,0.40863,2447.3,2447.1,1.83526831]
[1725493973676,0.40863,2447.3,2447.1,0.76805]
[1725493974387,3.61642,2447.4,2447.2,0.40865]
[1725493975282,0.40863,2447.3,2447.1,0.76805]
[1725493975684,3.61642,2447.4,2447.2,0.40865]
[1725493976181,0.40863,2447.3,2447.1,0.76805]
[1725493977084,3.61642,2447.4,2447.2,0.40865]
[1725493978589,3.61642,2447.4,2447.1,1.42661831]
[1725493978590,3.2078,2447.4,2447.1,1.42661831]
[1725493978890,3.61642,2447.4,2447.2,0.40864]
[1725493980384,3.2078,2447.4,2447.3,0.40863]
[1725493984489,3.61641,2447.4,2447.2,0.40864]
[1725493986093,0.40861,2447.4,2447.2,0.40864]
[1725493986289,0.40861,2447.4,2447.3,0.40863]
[1725493986795,0.40861,2447.5,2447.3,0.40863]
[1725493986998,1.02147,2447.6,2447.1,1.42661831]
[1725493986999,0.40859,2447.6,2447.4,0.4086]
[1725493987190,0.40859,2447.6,2447.5,0.3555]
[1725493987490,0.40859,2447.6,2447.5,1.1036]
[1725493988290,1.43004,2447.6,2447.5,0.3555]
[1725493991702,4.63784,2447.6,2447.5,0.3555]
[1725493993789,3.61639,2447.6,2447.5,0.3555]
[1725493994191,3.2078,2447.6,2447.5,6.0297]
[1725493994393,0.00396134,2447.7,2447.6,1.43003]
[1725493994596,0.4569,2448.2,2448.0,0.4085]
[1725493994801,0.40848,2448.2,2448.1,1.1549]
[1725493996097,0.40848,2448.2,2447.9,0.41465459]
[1725493996098,1.18,2448.2,2447.9,0.00613459]
[1725493996293,5.8176,2448.0,2447.9,0.00613459]
[1725493996498,6.83889,2448.0,2447.9,0.00613459]
[1725493996699,17.31209,2448.0,2447.9,0.00613459]
[1725493997998,18.95209,2448.0,2447.9,0.00613459]
[1725494004000,15.74429,2448.0,2447.9,0.00613459]
[1725494004203,18.95209,2448.0,2447.9,0.00613459]
[1725494007722,11.9308,2448.0,2447.9,0.00613459]
[1725494007924,7.846,2448.0,2447.9,0.00613459]
[1725494008316,11.9308,2448.0,2447.9,0.00613459]
[1725494009018,7.846,2448.0,2447.9,0.00613459]
[1725494009513,11.9308,2448.0,2447.9,0.00613459]
[1725494011124,7.846,2448.0,2447.9,0.00613459]
[1725494016025,7.4576,2448.0,2447.9,0.00613459]
[1725494017024,0.40851,2448.0,2447.9,0.00613459]
[1725494018021,3.2078,2448.3,2447.9,0.00613459]
[1725494018225,0.40848,2448.2,2448.0,0.40851]
[1725494018429,2.82,2448.6,2448.2,0.40847]
[1725494018725,0.40843,2448.5,2448.2,0.40847]
[1725494019527,0.40845,2448.4,2448.1,1.55629]
[1725494019923,1.58845,2448.4,2448.1,1.55629]
[1725494021624,1.18,2448.4,2448.2,0.40848]
[1725494021821,0.40845,2448.4,2448.1,2.73628]
[1725494022428,0.40844,2448.5,2448.2,0.40848]
[1725494022826,0.40845,2448.4,2448.1,2.73629]
[1725494024433,0.40845,2448.4,2448.2,0.40848]
[1725494024831,0.40845,2448.4,2448.1,2.73629]
[1725494025240,0.40845,2448.4,2448.2,0.40847]
[1725494026249,0.40846,2448.3,2448.1,2.73628]
[1725494026741,0.40846,2448.3,2448.1,6.82108]
[1725494027137,0.40846,2448.3,2448.1,2.73628]
[1725494027534,0.40846,2448.4,2448.2,0.40848]
[1725494028841,0.40847,2448.3,2448.1,2.73628]
[1725494029641,0.40846,2448.4,2448.1,2.73628]
[1725494030139,0.40846,2448.4,2448.2,0.40848]
[1725494030340,0.40844,2448.5,2448.3,0.40846]
[1725494030530,8.76209423,2448.9,2448.5,0.40841]
[1725494030737,0.40838,2448.8,2448.6,2.35471]
[1725494031043,0.40838,2448.8,2448.7,0.3871]
[1725494031243,0.3889,2449.1,2448.7,0.79549]
[1725494031435,0.40836,2448.9,2448.7,0.3871]
[1725494032038,0.40836,2448.9,2448.1,7.4048]
[1725494032039,5.264,2448.8,2448.1,7.4048]
[1725494032245,5.264,2448.8,2448.3,0.7426]
[1725494032246,0.40846,2448.4,2448.3,0.7426]
[1725494033149,0.40846,2448.4,2448.3,0.3555]
[1725494033337,0.40846,2448.3,2448.2,0.3943]
[1725494033536,0.40846,2448.3,2448.2,0.7498]
[1725494034544,0.40846,2448.4,2448.2,0.7498]
[1725494034735,3.2078,2448.5,2448.2,1.9298]
[1725494034736,3.61624,2448.5,2448.2,1.9298]
[1725494034937,3.61624,2448.5,2448.3,0.3943]
[1725494036236,1.58842,2448.6,2448.3,0.3943]
[1725494036446,0.40842,2448.6,2448.3,0.3943]
[1725494037838,0.4084,2448.8,2448.4,0.40843]
[1725494038038,2.56539,2448.8,2448.3,0.3943]
[1725494038242,0.40844,2448.5,2448.3,0.3943]
[1725494038742,0.3603,2448.7,2448.4,0.40844]
[1725494038942,0.7687,2448.7,2448.4,0.40844]
[1725494040146,0.7687,2448.7,2448.3,0.80275]
[1725494040543,0.7687,2448.7,2448.4,0.40844]
[1725494041548,0.7687,2448.7,2448.3,0.80275]
[1725494041549,0.40841,2448.6,2448.3,0.80275]
[1725494041747,0.40841,2448.6,2448.3,0.3943]
[1725494041748,0.40843,2448.5,2448.3,0.3943]
[1725494041943,3.2078,2448.6,2448.3,0.3943]
[1725494042149,3.61622,2448.6,2448.3,0.80276]
[1725494044537,0.40842,2448.6,2448.4,0.40844]
[1725494045546,0.40842,2448.6,2448.3,0.80275]
[1725494045746,0.40842,2448.6,2448.4,0.40845]
[1725494047152,0.76871,2448.7,2448.4,0.40845]
[1725494048651,0.76871,2448.7,2448.5,0.40843]
[1725494048844,0.76871,2448.7,2448.6,0.3722]
[1725494049145,0.76871,2448.7,2448.6,1.1063]
[1725494049551,0.76871,2448.7,2448.6,1.51471]
[1725494049745,0.4084,2448.7,2448.6,1.51471]
[1725494049948,4.60695,2448.9,2448.6,1.51471]
[1725494050143,0.40838,2448.8,2448.6,1.51471]
[1725494050657,0.78657,2448.9,2448.7,0.40838]
[1725494051549,0.3782,2448.9,2448.8,0.40838]
[1725494051857,0.78656,2448.9,2448.8,0.40838]
[1725494053150,0.78656,2448.9,2448.7,0.40838]
[1725494053551,0.78656,2448.9,2448.8,0.40838]
[1725494053760,0.78656,2448.9,2448.7,0.40839]
[1725494055759,0.40838,2448.8,2448.7,0.40839]
[1725494055953,0.78657,2448.9,2448.7,0.40839]
[1725494056359,0.40838,2448.8,2448.7,0.40839]
[1725494056559,0.78657,2448.9,2448.7,0.40839]
[1725494057049,0.40838,2448.8,2448.7,0.40839]
[1725494057756,0.40837,2448.9,2448.7,4.084]
[1725494057955,0.40838,2448.8,2448.6,1.5147]
[1725494058366,0.3591,2448.9,2448.6,1.5147]
[1725494058367,3.5669,2448.9,2448.6,1.1063]
[1725494058551,0.40839,2448.8,2448.6,1.51471]
[1725494058754,0.40839,2448.8,2448.6,1.1063]
[1725494059148,3.5669,2448.9,2448.6,1.1063]
[1725494059353,0.4084,2448.7,2448.6,1.1063]
[1725494060859,1.18,2448.7,2448.1,1.07036808]
[1725494061055,1.18,2448.7,2448.3,0.3696]
[1725494061056,0.40845,2448.4,2448.3,0.3696]
[1725494062459,0.40845,2448.4,2448.3,4.4536]
[1725494062664,0.40844,2448.5,2448.3,0.3696]
[1725494062856,0.40845,2448.4,2448.3,0.3696]
[1725494064266,0.40844,2448.5,2448.3,0.3696]
[1725494065265,0.7665,2448.6,2448.0,2.25036808]